Workbook

Sheet Household budget planner
B1: Household budget planner
B2: Net income | E2: Amount | F2: January | G2: February | H2: March | I2: April | J2: May | K2: June | L2: July | M2: August | N2: September | O2: October | P2: November | Q2: December
C3: Income | E3: =F3+G3+H3+I3+J3+K3+L3+M3+N3+O3+P3+Q3 -> 33,600.00 | F3: 2,800.00 | G3: 2,800.00 | H3: 2,800.00 | I3: 2,800.00 | J3: 2,800.00 | K3: 2,800.00 | L3: 2,800.00 | M3: 2,800.00 | N3: 2,800.00 | O3: 2,800.00 | P3: 2,800.00 | Q3: 2,800.00
C4: Additional income 1 | E4: =F4+G4+H4+I4+J4+K4+L4+M4+N4+O4+P4+Q4 -> 4,800.00 | F4: 400.00 | G4: 400.00 | H4: 400.00 | I4: 400.00 | J4: 400.00 | K4: 400.00 | L4: 400.00 | M4: 400.00 | N4: 400.00 | O4: 400.00 | P4: 400.00 | Q4: 400.00
C5: Additional income 2 | E5: =F5+G5+H5+I5+J5+K5+L5+M5+N5+O5+P5+Q5 -> 0.00 | F5: 0.00 | G5: 0.00 | H5: 0.00 | I5: 0.00 | J5: 0.00 | K5: 0.00 | L5: 0.00 | M5: 0.00 | N5: 0.00 | O5: 0.00 | P5: 0.00 | Q5: 0.00
C6: Total income | E6: =SUM(E3:E5) -> 38,400.00 | F6: =SUM(F3:F5) -> 3,200.00 | G6: 3,200.00 | H6: 3,200.00 | I6: 3,200.00 | J6: 3,200.00 | K6: 3,200.00 | L6: 3,200.00 | M6: 3,200.00 | N6: 3,200.00 | O6: 3,200.00 | P6: 3,200.00 | Q6: 3,200.00
B8: Home
C9: Rent (incl. utilities) | E9: 545.00 | F9: 545.00 | G9: 545.00 | H9: 545.00 | I9: 545.00 | J9: 545.00 | K9: 545.00 | L9: 545.00 | M9: 545.00 | N9: 545.00 | O9: 545.00 | P9: 545.00 | Q9: 545.00
C10: Heating / Gas / Oil | E10: 35.00 | F10: 35.00 | G10: 35.00 | H10: 35.00 | I10: 35.00 | J10: 35.00 | K10: 35.00 | L10: 35.00 | M10: 35.00 | N10: 35.00 | O10: 35.00 | P10: 35.00 | Q10: 35.00
C11: Waste | E11: 9.00 | F11: 9.00 | G11: 9.00 | H11: 9.00 | I11: 9.00 | J11: 9.00 | K11: 9.00 | L11: 9.00 | M11: 9.00 | N11: 9.00 | O11: 9.00 | P11: 9.00 | Q11: 9.00
C12: Water | E12: 0.00 | F12: 0.00 | G12: 0.00 | H12: 0.00 | I12: 0.00 | J12: 0.00 | K12: 0.00 | L12: 0.00 | M12: 0.00 | N12: 0.00 | O12: 0.00 | P12: 0.00 | Q12: 0.00
C13: Maintenance | E13: 0.00 | F13: 0.00 | G13: 0.00 | H13: 0.00 | I13: 0.00 | J13: 0.00 | K13: 0.00 | L13: 0.00 | M13: 0.00 | N13: 0.00 | O13: 0.00 | P13: 0.00 | Q13: 0.00
C14: Electricity | E14: 40.00 | F14: 40.00 | G14: 40.00 | H14: 40.00 | I14: 40.00 | J14: 40.00 | K14: 40.00 | L14: 40.00 | M14: 40.00 | N14: 40.00 | O14: 40.00 | P14: 40.00 | Q14: 40.00
C15: Repairs | E15: =F15+G15+H15+I15+J15+K15+L15+M15+N15+O15+P15+Q15 -> 0.00 | F15: 0.00 | G15: 0.00 | H15: 0.00 | I15: 0.00 | J15: 0.00 | K15: 0.00 | L15: 0.00 | M15: 0.00 | N15: 0.00 | O15: 0.00 | P15: 0.00 | Q15: 0.00
C16: Caretaker / Gardener | E16: 0.00 | F16: 0.00 | G16: 0.00 | H16: 0.00 | I16: 0.00 | J16: 0.00 | K16: 0.00 | L16: 0.00 | M16: 0.00 | N16: 0.00 | O16: 0.00 | P16: 0.00 | Q16: 0.00
C17: Insurance | E17: 0.00 | F17: 0.00 | G17: 0.00 | H17: 0.00 | I17: 0.00 | J17: 0.00 | K17: 0.00 | L17: 0.00 | M17: 0.00 | N17: 0.00 | O17: 0.00 | P17: 0.00 | Q17: 0.00
C18: Land tax | E18: 0.00 | F18: 0.00 | G18: 0.00 | H18: 0.00 | I18: 0.00 | J18: 0.00 | K18: 0.00 | L18: 0.00 | M18: 0.00 | N18: 0.00 | O18: 0.00 | P18: 0.00 | Q18: 0.00
C19: Other | E19: =F19+G19+H19+I19+J19+K19+L19+M19+N19+O19+P19+Q19 -> 0.00 | F19: 0.00 | G19: 0.00 | H19: 0.00 | I19: 0.00 | J19: 0.00 | K19: 0.00 | L19: 0.00 | M19: 0.00 | N19: 0.00 | O19: 0.00 | P19: 0.00 | Q19: 0.00
C20: Total housing costs | E20: =SUM(E9:E19) -> 629.00 | F20: =SUM(F9:F19) -> 629.00 | G20: 629.00 | H20: 629.00 | I20: 629.00 | J20: 629.00 | K20: 629.00 | L20: 629.00 | M20: 629.00 | N20: 629.00 | O20: 629.00 | P20: 629.00 | Q20: 629.00
B22: Auto
C23: Monthly rate | E23: =F23+G23+H23+I23+J23+K23+L23+M23+N23+O23+P23+Q23 -> 0.00 | F23: 0.00 | G23: 0.00 | H23: 0.00 | I23: 0.00 | J23: 0.00 | K23: 0.00 | L23: 0.00 | M23: 0.00 | N23: 0.00 | O23: 0.00 | P23: 0.00 | Q23: 0.00
C24: Insurance | E24: 30.00 | F24: 340.00 | G24: 0.00 | H24: 0.00 | I24: 0.00 | J24: 0.00 | K24: 0.00 | L24: 0.00 | M24: 0.00 | N24: 0.00 | O24: 0.00 | P24: 0.00 | Q24: 0.00
C25: Car tax | E25: 120.00 | F25: 120.00 | G25: 0.00 | H25: 0.00 | I25: 0.00 | J25: 0.00 | K25: 0.00 | L25: 0.00 | M25: 0.00 | N25: 0.00 | O25: 0.00 | P25: 0.00 | Q25: 0.00
C26: Gasoline | E26: =F26+G26+H26+I26+J26+K26+L26+M26+N26+O26+P26+Q26 -> 494.00 | F26: 80.00 | G26: 0.00 | H26: 80.00 | I26: 0.00 | J26: 78.00 | K26: 0.00 | L26: 81.00 | M26: 0.00 | N26: 85.00 | O26: 0.00 | P26: 90.00 | Q26: 0.00
C27: Inspection | E27: 460.00 | F27: 0.00 | G27: 230.00 | H27: 0.00 | I27: 0.00 | J27: 0.00 | K27: 0.00 | L27: 0.00 | M27: 0.00 | N27: 230.00 | O27: 0.00 | P27: 0.00 | Q27: 0.00
C28: Repairs | E28: 700.00 | F28: 0.00 | G28: 400.00 | H28: 0.00 | I28: 0.00 | J28: 0.00 | K28: 0.00 | L28: 0.00 | M28: 0.00 | N28: 300.00 | O28: 0.00 | P28: 0.00 | Q28: 0.00
C29: ADAC | E29: 56.00 | F29: 56.00 | G29: 0.00 | H29: 0.00 | I29: 0.00 | J29: 0.00 | K29: 0.00 | L29: 0.00 | M29: 0.00 | N29: 0.00 | O29: 0.00 | P29: 0.00 | Q29: 0.00
C30: Care / Wash | E30: 100.00 | F30: 0.00 | G30: 20.00 | H30: 20.00 | I30: 0.00 | J30: 20.00 | K30: 0.00 | L30: 20.00 | M30: 0.00 | N30: 20.00 | O30: 0.00 | P30: 0.00 | Q30: 0.00
C31: Other | E31: 0.00 | F31: 0.00 | G31: 0.00 | H31: 0.00 | I31: 0.00 | J31: 0.00 | K31: 0.00 | L31: 0.00 | M31: 0.00 | N31: 0.00 | O31: 0.00 | P31: 0.00 | Q31: 0.00
C32: Total car costs | E32: =SUM(E23:E31) -> 1,960.00 | F32: 596.00 | G32: 650.00 | H32: 100.00 | I32: 0.00 | J32: 98.00 | K32: 0.00 | L32: 101.00 | M32: 0.00 | N32: 635.00 | O32: 0.00 | P32: 90.00 | Q32: 0.00
B34: Life
C35: Food | E35: =F35+G35+H35+I35+J35+K35+L35+M35+N35+O35+P35+Q35 -> 4,800.00 | F35: 400.00 | G35: 400.00 | H35: 400.00 | I35: 400.00 | J35: 400.00 | K35: 400.00 | L35: 400.00 | M35: 400.00 | N35: 400.00 | O35: 400.00 | P35: 400.00 | Q35: 400.00
C36: Insurance 1 | E36: 100.00 | F36: 0.00 | G36: 0.00 | H36: 0.00 | I36: 0.00 | J36: 0.00 | K36: 0.00 | L36: 0.00 | M36: 0.00 | N36: 0.00 | O36: 0.00 | P36: 0.00 | Q36: 0.00
C37: Insurance 2 | E37: =SUM(F37:Q37) -> 60.00 | F37: 60.00 | G37: 0.00 | H37: 0.00 | I37: 0.00 | J37: 0.00 | K37: 0.00 | L37: 0.00 | M37: 0.00 | N37: 0.00 | O37: 0.00 | P37: 0.00 | Q37: 0.00
C38: Telecommunication | E38: 330.00 | F38: 30.00 | G38: 30.00 | H38: 30.00 | I38: 30.00 | J38: 30.00 | K38: 30.00 | L38: 30.00 | M38: 30.00 | N38: 30.00 | O38: 30.00 | P38: 30.00 | Q38: 0.00
C39: Sport | E39: 110.00 | F39: 10.00 | G39: 10.00 | H39: 10.00 | I39: 10.00 | J39: 10.00 | K39: 10.00 | L39: 10.00 | M39: 10.00 | N39: 10.00 | O39: 10.00 | P39: 10.00 | Q39: 0.00
C40: Leisure, cinema, etc. | E40: 1,036.00 | F40: 100.00 | G40: 80.00 | H40: 70.00 | I40: 89.00 | J40: 100.00 | K40: 120.00 | L40: 78.00 | M40: 80.00 | N40: 89.00 | O40: 110.00 | P40: 120.00 | Q40: 0.00
C41: Membership fees | E41: 165.00 | F41: 15.00 | G41: 15.00 | H41: 15.00 | I41: 15.00 | J41: 15.00 | K41: 15.00 | L41: 15.00 | M41: 15.00 | N41: 15.00 | O41: 15.00 | P41: 15.00 | Q41: 0.00
C42: Travels | E42: 800.00 | F42: 0.00 | G42: 0.00 | H42: 0.00 | I42: 0.00 | J42: 800.00 | K42: 0.00 | L42: 0.00 | M42: 0.00 | N42: 0.00 | O42: 0.00 | P42: 0.00 | Q42: 0.00
C43: Provisions | E43: 0.00 | F43: 0.00 | G43: 0.00 | H43: 0.00 | I43: 0.00 | J43: 0.00 | K43: 0.00 | L43: 0.00 | M43: 0.00 | N43: 0.00 | O43: 0.00 | P43: 0.00 | Q43: 0.00
C44: Furniture | E44: 1,200.00 | F44: 0.00 | G44: 0.00 | H44: 0.00 | I44: 0.00 | J44: 0.00 | K44: 0.00 | L44: 0.00 | M44: 0.00 | N44: 1,200.00 | O44: 0.00 | P44: 0.00 | Q44: 0.00
C45: Clothes | E45: 40.00 | F45: 40.00 | G45: 0.00 | H45: 0.00 | I45: 0.00 | J45: 0.00 | K45: 0.00 | L45: 0.00 | M45: 0.00 | N45: 0.00 | O45: 0.00 | P45: 0.00 | Q45: 0.00
C46: Hairdressing services | E46: 100.00 | F46: 25.00 | G46: 0.00 | H46: 0.00 | I46: 25.00 | J46: 0.00 | K46: 0.00 | L46: 25.00 | M46: 0.00 | N46: 0.00 | O46: 25.00 | P46: 0.00 | Q46: 0.00
C47: Subscriptions | E47: 0.00 | F47: 0.00 | G47: 0.00 | H47: 0.00 | I47: 0.00 | J47: 0.00 | K47: 0.00 | L47: 0.00 | M47: 0.00 | N47: 0.00 | O47: 0.00 | P47: 0.00 | Q47: 0.00
C48: Household help | E48: 0.00 | F48: 0.00 | G48: 0.00 | H48: 0.00 | I48: 0.00 | J48: 0.00 | K48: 0.00 | L48: 0.00 | M48: 0.00 | N48: 0.00 | O48: 0.00 | P48: 0.00 | Q48: 0.00
C49: School fees | E49: 0.00 | F49: 0.00 | G49: 0.00 | H49: 0.00 | I49: 0.00 | J49: 0.00 | K49: 0.00 | L49: 0.00 | M49: 0.00 | N49: 0.00 | O49: 0.00 | P49: 0.00 | Q49: 0.00
C50: Other | E50: 0.00 | F50: 0.00 | G50: 0.00 | H50: 0.00 | I50: 0.00 | J50: 0.00 | K50: 0.00 | L50: 0.00 | M50: 0.00 | N50: 0.00 | O50: 0.00 | P50: 0.00 | Q50: 0.00
C51: Public transport | E51: 0.00 | F51: 0.00 | G51: 0.00 | H51: 0.00 | I51: 0.00 | J51: 0.00 | K51: 0.00 | L51: 0.00 | M51: 0.00 | N51: 0.00 | O51: 0.00 | P51: 0.00 | Q51: 0.00
C52: Total living costs | E52: =SUM(E35:E51) -> 8,741.00 | F52: =SUM(F35:F51) -> 680.00 | G52: 535.00 | H52: 525.00 | I52: 569.00 | J52: 1,355.00 | K52: 575.00 | L52: 558.00 | M52: 535.00 | N52: 1,744.00 | O52: 590.00 | P52: 575.00 | Q52: 400.00
B53: Total costs | E53: =E20+E32+E52 -> 11,330.00 | F53: 1,905.00 | G53: 1,814.00 | H53: 1,254.00 | I53: 1,198.00 | J53: 2,082.00 | K53: 1,204.00 | L53: 1,288.00 | M53: 1,164.00 | N53: 3,008.00 | O53: 1,219.00 | P53: 1,294.00 | Q53: 1,029.00
B54: Surplus / Deficit | E54: =E6-E53 -> 27,070.00 | F54: 1,295.00 | G54: 1,386.00 | H54: 1,946.00 | I54: 2,002.00 | J54: 1,118.00 | K54: 1,996.00 | L54: 1,912.00 | M54: 2,036.00 | N54: 192.00 | O54: 1,981.00 | P54: 1,906.00 | Q54: 2,171.00
